[Event "Early-Titled-Tuesday-Blitz-May-28-2024"]
[Site "Chess.com"]
[Date "2024.05.28"]
[Round "2"]
[White "Sofia_Blokhin"]
[Black "Cheer_Down"]
[Result "1/2-1/2"]
[WhiteElo "2265"]
[BlackElo "2495"]
[TimeControl "180+1"]
[EndTime "8:17:58 PDT"]
[Termination "Game drawn by repetition"]

1. d4 {[%clk 0:03:00.9]} 1... d5 {[%clk 0:02:54.3]} 2. c4 {[%clk 0:02:59.2]}
2... e6 {[%clk 0:02:54.4]} 3. Nc3 {[%clk 0:02:56.9]} 3... Nf6 {[%clk 0:02:54.6]}
4. Nf3 {[%clk 0:02:56.6]} 4... Nbd7 {[%clk 0:02:53.3]} 5. e3 {[%clk 0:02:56.5]}
5... a6 {[%clk 0:02:45.5]} 6. cxd5 {[%clk 0:02:54.5]} 6... exd5 {[%clk 0:02:45]}
7. Bd3 {[%clk 0:02:53.7]} 7... Bd6 {[%clk 0:02:40.8]} 8. O-O {[%clk 0:02:53]}
8... O-O {[%clk 0:02:40.5]} 9. Qc2 {[%clk 0:02:51.8]} 9... Re8 {[%clk
0:02:39.5]} 10. Re1 {[%clk 0:02:50.4]} 10... c6 {[%clk 0:02:29.5]} 11. a3 {[%clk
0:02:43.7]} 11... a5 {[%clk 0:02:27.9]} 12. Na4 {[%clk 0:02:31.1]} 12... Nf8
{[%clk 0:02:22.7]} 13. Nc5 {[%clk 0:02:27.3]} 13... b6 {[%clk 0:02:15.5]} 14.
Na4 {[%clk 0:02:20.9]} 14... Bb7 {[%clk 0:02:11.1]} 15. Bd2 {[%clk 0:02:13.7]}
15... N8d7 {[%clk 0:02:10]} 16. b4 {[%clk 0:02:07.6]} 16... axb4 {[%clk
0:02:02.7]} 17. axb4 {[%clk 0:02:07.2]} 17... b5 {[%clk 0:02:02.8]} 18. Nc5
{[%clk 0:02:04.6]} 18... Nxc5 {[%clk 0:02:03.1]} 19. dxc5 {[%clk 0:01:58.2]}
19... Bc7 {[%clk 0:02:01.7]} 20. Nd4 {[%clk 0:01:55.1]} 20... g6 {[%clk
0:02:00.6]} 21. g3 {[%clk 0:01:45.1]} 21... Qe7 {[%clk 0:01:59.1]} 22. Bc3
{[%clk 0:01:29.5]} 22... Ng4 {[%clk 0:01:51.1]} 23. Nf3 {[%clk 0:01:10.7]} 23...
Ne5 {[%clk 0:01:46.8]} 24. Nxe5 {[%clk 0:00:52.2]} 24... Bxe5 {[%clk 0:01:46.8]}
25. Qb2 {[%clk 0:00:50.5]} 25... Bxc3 {[%clk 0:01:44.5]} 26. Qxc3 {[%clk
0:00:50.4]} 26... Red8 {[%clk 0:01:36.4]} 27. Qd4 {[%clk 0:00:48.8]} 27... Rxa1
{[%clk 0:01:30.9]} 28. Rxa1 {[%clk 0:00:47.7]} 28... Ra8 {[%clk 0:01:31.5]} 29.
Rxa8+ {[%clk 0:00:45.8]} 29... Bxa8 {[%clk 0:01:32.4]} 30. Qa1 {[%clk
0:00:36.6]} 30... Bb7 {[%clk 0:01:31.1]} 31. Qa7 {[%clk 0:00:33.7]} 31... Qd7
{[%clk 0:01:31.3]} 32. Qb8+ {[%clk 0:00:25.6]} 32... Kg7 {[%clk 0:01:26.5]} 33.
Qe5+ {[%clk 0:00:19.9]} 33... f6 {[%clk 0:01:26.4]} 34. Qd4 {[%clk 0:00:17.7]}
34... Qe7 {[%clk 0:01:25.7]} 35. e4 {[%clk 0:00:16.8]} 35... dxe4 {[%clk
0:01:24]} 36. Qxe4 {[%clk 0:00:16.9]} 36... Qxe4 {[%clk 0:01:20.5]} 37. Bxe4
{[%clk 0:00:17]} 37... h6 {[%clk 0:01:18.9]} 38. Kg2 {[%clk 0:00:16.6]} 38... g5
{[%clk 0:01:19.1]} 39. Kf3 {[%clk 0:00:15.9]} 39... Kf7 {[%clk 0:01:12.8]} 40.
Ke3 {[%clk 0:00:15.9]} 40... Ke6 {[%clk 0:01:12.1]} 41. g4 {[%clk 0:00:14.9]}
41... Ke5 {[%clk 0:01:10.7]} 42. f3 {[%clk 0:00:13.5]} 42... Ba8 {[%clk
0:01:10]} 43. Bf5 {[%clk 0:00:13.4]} 43... Bb7 {[%clk 0:01:09.7]} 44. Be4 {[%clk
0:00:14]} 44... Ke6 {[%clk 0:01:09]} 45. Bf5+ {[%clk 0:00:14.1]} 45... Ke5
{[%clk 0:01:07.6]} 46. Be4 {[%clk 0:00:14.4]} 1/2-1/2

[Event "Early-Titled-Tuesday-Blitz-May-28-2024"]
[Site "Chess.com"]
[Date "2024.05.28"]
[Round "2"]
[White "remi04"]
[Black "2Coaches1Profile"]
[Result "0-1"]
[WhiteElo "2800"]
[BlackElo "2582"]
[TimeControl "180+1"]
[EndTime "8:17:59 PDT"]
[Termination "2Coaches1Profile won by resignation"]

1. e4 {[%clk 0:03:00.9]} 1... Nf6 {[%clk 0:02:59.1]} 2. Nc3 {[%clk 0:02:59.6]}
2... d6 {[%clk 0:02:50.7]} 3. d4 {[%clk 0:02:59.2]} 3... e5 {[%clk 0:02:51.2]}
4. Nf3 {[%clk 0:02:59.1]} 4... Nbd7 {[%clk 0:02:51.1]} 5. Bc4 {[%clk 0:02:59]}
5... Be7 {[%clk 0:02:51.6]} 6. O-O {[%clk 0:02:58.9]} 6... O-O {[%clk
0:02:51.8]} 7. a4 {[%clk 0:02:59.5]} 7... c6 {[%clk 0:02:51.5]} 8. Re1 {[%clk
0:02:59.2]} 8... b6 {[%clk 0:02:50.9]} 9. d5 {[%clk 0:02:56.2]} 9... Bb7 {[%clk
0:02:48]} 10. Bg5 {[%clk 0:02:42.8]} 10... cxd5 {[%clk 0:02:47.5]} 11. Nxd5
{[%clk 0:02:25.3]} 11... Rc8 {[%clk 0:02:25.4]} 12. Nxe7+ {[%clk 0:02:12]} 12...
Qxe7 {[%clk 0:02:26.3]} 13. Bb5 {[%clk 0:02:12.2]} 13... Rfd8 {[%clk 0:02:19.2]}
14. a5 {[%clk 0:02:06.2]} 14... h6 {[%clk 0:02:18.3]} 15. Bxd7 {[%clk
0:01:17.4]} 15... Rxd7 {[%clk 0:02:16.9]} 16. Bxf6 {[%clk 0:01:17.8]} 16... Qxf6
{[%clk 0:02:17.5]} 17. axb6 {[%clk 0:01:13.9]} 17... axb6 {[%clk 0:02:18.4]} 18.
Qe2 {[%clk 0:00:59.3]} 18... d5 {[%clk 0:01:59.5]} 19. exd5 {[%clk 0:00:57.6]}
19... Rxd5 {[%clk 0:02:00.4]} 20. Ra7 {[%clk 0:00:54.5]} 20... Bc6 {[%clk
0:01:58.9]} 21. Qa6 {[%clk 0:00:19.8]} 21... Rb8 {[%clk 0:01:48.4]} 22. Rc7
{[%clk 0:00:17.3]} 22... Ra5 {[%clk 0:01:36.7]} 23. Qe2 {[%clk 0:00:13.5]} 23...
e4 {[%clk 0:01:28]} 24. Nd2 {[%clk 0:00:10]} 24... Qd6 {[%clk 0:01:26.5]} 25.
Rxc6 {[%clk 0:00:05.9]} 25... Qxc6 {[%clk 0:01:27.4]} 26. c4 {[%clk 0:00:05.1]}
26... Re5 {[%clk 0:01:17.5]} 27. Qe3 {[%clk 0:00:05.1]} 27... Qc5 {[%clk
0:01:14.9]} 28. Qc3 {[%clk 0:00:05.4]} 28... Rbe8 {[%clk 0:01:03.9]} 29. b4
{[%clk 0:00:05.5]} 29... Qc6 {[%clk 0:01:00.3]} 30. Nf1 {[%clk 0:00:05.9]} 30...
f5 {[%clk 0:00:56.8]} 31. Qb3 {[%clk 0:00:05.5]} 31... f4 {[%clk 0:00:55.3]} 32.
c5+ {[%clk 0:00:03.2]} 32... Kh8 {[%clk 0:00:55.3]} 33. cxb6 {[%clk 0:00:03.5]}
33... Qxb6 {[%clk 0:00:55.7]} 34. Nd2 {[%clk 0:00:03.9]} 34... e3 {[%clk
0:00:55.5]} 35. fxe3 {[%clk 0:00:03.8]} 35... Rxe3 {[%clk 0:00:55.5]} 0-1

[Event "Early-Titled-Tuesday-Blitz-May-28-2024"]
[Site "Chess.com"]
[Date "2024.05.28"]
[Round "2"]
[White "Sl4werThanYou"]
[Black "ural58"]
[Result "1-0"]
[WhiteElo "2746"]
[BlackElo "2445"]
[TimeControl "180+1"]
[EndTime "8:18:02 PDT"]
[Termination "Sl4werThanYou won on time"]

1. e4 {[%clk 0:03:00.9]} 1... d5 {[%clk 0:02:49.4]} 2. exd5 {[%clk 0:02:58.1]}
2... Qxd5 {[%clk 0:02:49.5]} 3. d4 {[%clk 0:02:57.6]} 3... Nc6 {[%clk
0:02:48.6]} 4. Nf3 {[%clk 0:02:55.6]} 4... Bg4 {[%clk 0:02:48.2]} 5. Be2 {[%clk
0:02:51.5]} 5... O-O-O {[%clk 0:02:47.3]} 6. Be3 {[%clk 0:02:50.9]} 6... e5
{[%clk 0:02:43.8]} 7. dxe5 {[%clk 0:02:33.1]} 7... Qxd1+ {[%clk 0:02:42.7]} 8.
Bxd1 {[%clk 0:02:34]} 8... Nxe5 {[%clk 0:02:40.2]} 9. Nbd2 {[%clk 0:02:34]} 9...
Bxf3 {[%clk 0:02:08.1]} 10. Nxf3 {[%clk 0:02:32.1]} 10... Nc4 {[%clk 0:02:07.9]}
11. Bc1 {[%clk 0:02:32.4]} 11... Re8+ {[%clk 0:02:05.2]} 12. Kf1 {[%clk
0:02:29.2]} 12... Bc5 {[%clk 0:02:00.1]} 13. g3 {[%clk 0:02:22.4]} 13... Nd6
{[%clk 0:01:57]} 14. Kg2 {[%clk 0:02:20.2]} 14... Nf6 {[%clk 0:01:53.6]} 15. c3
{[%clk 0:02:18.9]} 15... Ng4 {[%clk 0:01:51.4]} 16. Rf1 {[%clk 0:02:16.7]} 16...
Ne4 {[%clk 0:01:47.2]} 17. Nd4 {[%clk 0:02:17.2]} 17... Ngxf2 {[%clk 0:01:17.1]}
18. Rxf2 {[%clk 0:02:14.8]} 18... Nxf2 {[%clk 0:01:16.6]} 19. Kxf2 {[%clk
0:02:15.7]} 19... f5 {[%clk 0:01:08.2]} 20. Be3 {[%clk 0:02:10.8]} 20... Bb6
{[%clk 0:01:04]} 21. Bf3 {[%clk 0:02:09.1]} 21... g6 {[%clk 0:01:02.9]} 22. Rd1
{[%clk 0:02:02.9]} 22... c6 {[%clk 0:01:01.8]} 23. Nc2 {[%clk 0:02:02.4]} 23...
Bxe3+ {[%clk 0:00:58.3]} 24. Nxe3 {[%clk 0:02:03.3]} 24... Rd8 {[%clk
0:00:57.5]} 25. Rd4 {[%clk 0:01:55.7]} 25... Rxd4 {[%clk 0:00:57]} 26. cxd4
{[%clk 0:01:56.6]} 26... Rd8 {[%clk 0:00:55]} 27. d5 {[%clk 0:01:57.2]} 27...
cxd5 {[%clk 0:00:54.2]} 28. Nxd5 {[%clk 0:01:58.1]} 28... Rd6 {[%clk 0:00:51.2]}
29. Ke3 {[%clk 0:01:56]} 29... Re6+ {[%clk 0:00:39.7]} 30. Kd4 {[%clk
0:01:55.5]} 30... Kd7 {[%clk 0:00:36.7]} 31. Nf4 {[%clk 0:01:44.3]} 31... Rd6+
{[%clk 0:00:36.3]} 32. Bd5 {[%clk 0:01:44.7]} 32... b6 {[%clk 0:00:31.2]} 33.
Ke5 {[%clk 0:01:44.7]} 33... Ke7 {[%clk 0:00:28.5]} 34. Ne6 {[%clk 0:01:44.9]}
34... Rd7 {[%clk 0:00:24.9]} 35. b4 {[%clk 0:01:42.4]} 35... a6 {[%clk
0:00:15.3]} 36. a4 {[%clk 0:01:42.8]} 36... Ra7 {[%clk 0:00:10.6]} 37. h4 {[%clk
0:01:39.7]} 37... Rd7 {[%clk 0:00:09.1]} 38. Ng5 {[%clk 0:01:31.2]} 38... h6
{[%clk 0:00:03.9]} 39. Ne6 {[%clk 0:01:31.7]} 39... Ra7 {[%clk 0:00:03.2]} 40.
Nf4 {[%clk 0:01:31.5]} 40... g5 {[%clk 0:00:02.4]} 41. hxg5 {[%clk 0:01:32.4]}
41... hxg5 {[%clk 0:00:02.6]} 42. Ng6+ {[%clk 0:01:33.3]} 42... Kd7 {[%clk
0:00:02]} 43. Kxf5 {[%clk 0:01:29.4]} 43... Rc7 {[%clk 0:00:01.9]} 44. Kxg5
{[%clk 0:01:25.9]} 44... Rc3 {[%clk 0:00:02.3]} 45. g4 {[%clk 0:01:25.7]} 45...
Ra3 {[%clk 0:00:03]} 46. Ne5+ {[%clk 0:01:23.2]} 46... Ke7 {[%clk 0:00:01.4]}
47. a5 {[%clk 0:01:22.2]} 47... bxa5 {[%clk 0:00:01]} 48. bxa5 {[%clk
0:01:23.1]} 1-0

[Event "Early-Titled-Tuesday-Blitz-May-28-2024"]
[Site "Chess.com"]
[Date "2024.05.28"]
[Round "2"]
[White "db-banana"]
[Black "GoltsevDmitry2000"]
[Result "0-1"]
[WhiteElo "2483"]
[BlackElo "2755"]
[TimeControl "180+1"]
[EndTime "8:18:05 PDT"]
[Termination "GoltsevDmitry2000 won by resignation"]

1. e4 {[%clk 0:03:00.9]} 1... e6 {[%clk 0:03:00]} 2. d4 {[%clk 0:03:00.6]} 2...
d5 {[%clk 0:03:00.9]} 3. Nd2 {[%clk 0:03:00.8]} 3... c5 {[%clk 0:03:01.1]} 4.
exd5 {[%clk 0:03:00.5]} 4... exd5 {[%clk 0:03:02]} 5. Ngf3 {[%clk 0:02:58.6]}
5... Nf6 {[%clk 0:03:02.5]} 6. Bb5+ {[%clk 0:02:55.7]} 6... Nc6 {[%clk
0:03:02.9]} 7. O-O {[%clk 0:02:55.6]} 7... Be7 {[%clk 0:03:03.5]} 8. dxc5 {[%clk
0:02:55.1]} 8... Bxc5 {[%clk 0:03:04.4]} 9. Re1+ {[%clk 0:02:53.6]} 9... Be6
{[%clk 0:03:04.2]} 10. Nb3 {[%clk 0:02:53.3]} 10... Bb6 {[%clk 0:03:03.4]} 11.
Nbd4 {[%clk 0:02:42.6]} 11... O-O {[%clk 0:03:03.1]} 12. c3 {[%clk 0:02:19.9]}
12... Qd6 {[%clk 0:02:46.1]} 13. h3 {[%clk 0:02:04]} 13... Bd7 {[%clk
0:02:37.7]} 14. Nxc6 {[%clk 0:01:21.3]} 14... bxc6 {[%clk 0:02:36.8]} 15. Bd3
{[%clk 0:01:21.8]} 15... Bxh3 {[%clk 0:02:26]} 16. Ne5 {[%clk 0:01:10.1]} 16...
Bd7 {[%clk 0:01:10.9]} 17. Bg5 {[%clk 0:01:09.9]} 17... Rfe8 {[%clk 0:01:06.1]}
18. Bf4 {[%clk 0:00:31.9]} 18... Ng4 {[%clk 0:00:47.7]} 19. Nxg4 {[%clk
0:00:07.2]} 19... Qxf4 {[%clk 0:00:47.1]} 20. Ne3 {[%clk 0:00:06.3]} 20... Re5
{[%clk 0:00:38.1]} 21. g3 {[%clk 0:00:03.2]} 21... Rg5 {[%clk 0:00:34]} 22. Qe2
{[%clk 0:00:01.4]} 22... Re8 {[%clk 0:00:30.7]} 23. Kh2 {[%clk 0:00:01.6]} 23...
Re6 {[%clk 0:00:23.9]} 24. gxf4 {[%clk 0:00:01.2]} 0-1

[Event "Early-Titled-Tuesday-Blitz-May-28-2024"]
[Site "Chess.com"]
[Date "2024.05.28"]
[Round "2"]
[White "Klendi"]
[Black "Lennis93"]
[Result "0-1"]
[WhiteElo "2408"]
[BlackElo "2759"]
[TimeControl "180+1"]
[EndTime "8:18:05 PDT"]
[Termination "Lennis93 won on time"]

1. e4 {[%clk 0:02:59.3]} 1... c5 {[%clk 0:03:00.2]} 2. c3 {[%clk 0:02:59.3]}
2... e6 {[%clk 0:03:00.8]} 3. d4 {[%clk 0:02:54.4]} 3... d5 {[%clk 0:03:01.7]}
4. e5 {[%clk 0:02:53.7]} 4... Nc6 {[%clk 0:03:00.6]} 5. Nf3 {[%clk 0:02:53.7]}
5... Qb6 {[%clk 0:03:00]} 6. a3 {[%clk 0:02:53.4]} 6... f6 {[%clk 0:02:57.8]} 7.
Bd3 {[%clk 0:02:40.5]} 7... fxe5 {[%clk 0:02:47.8]} 8. Nxe5 {[%clk 0:02:35.3]}
8... Nf6 {[%clk 0:02:47]} 9. O-O {[%clk 0:02:33.1]} 9... cxd4 {[%clk 0:02:45.2]}
10. cxd4 {[%clk 0:02:29]} 10... Bd6 {[%clk 0:02:37.7]} 11. Nxc6 {[%clk 0:02:18]}
11... bxc6 {[%clk 0:02:35.2]} 12. Nc3 {[%clk 0:02:17.3]} 12... O-O {[%clk
0:02:34.5]} 13. Na4 {[%clk 0:02:11.1]} 13... Qc7 {[%clk 0:02:29.1]} 14. h3
{[%clk 0:02:09.9]} 14... e5 {[%clk 0:02:27.8]} 15. dxe5 {[%clk 0:02:03.4]} 15...
Bxe5 {[%clk 0:02:28.7]} 16. Qc2 {[%clk 0:02:00.4]} 16... Rb8 {[%clk 0:01:58]}
17. Rb1 {[%clk 0:01:54.3]} 17... Ne4 {[%clk 0:01:34.7]} 18. Be3 {[%clk
0:01:52.6]} 18... Bf5 {[%clk 0:01:29.4]} 19. Nc5 {[%clk 0:01:38]} 19... Qe7
{[%clk 0:00:56.9]} 20. Nxe4 {[%clk 0:01:28.9]} 20... dxe4 {[%clk 0:00:56.8]} 21.
Be2 {[%clk 0:01:06.9]} 21... Qh4 {[%clk 0:00:49.7]} 22. Qxc6 {[%clk 0:00:58.8]}
22... Rbe8 {[%clk 0:00:44.3]} 23. Rfd1 {[%clk 0:00:40.8]} 23... Bxh3 {[%clk
0:00:43.4]} 24. Bc4+ {[%clk 0:00:08.5]} 24... Kh8 {[%clk 0:00:42.3]} 25. Rd7
{[%clk 0:00:04.1]} 25... Bh2+ {[%clk 0:00:35.9]} 26. Kf1 {[%clk 0:00:01.2]}
26... Bxd7 {[%clk 0:00:30.5]} 0-1

[Event "Early-Titled-Tuesday-Blitz-May-28-2024"]
[Site "Chess.com"]
[Date "2024.05.28"]
[Round "2"]
[White "dropstoneDP"]
[Black "Iskusnyh"]
[Result "1-0"]
[WhiteElo "2981"]
[BlackElo "2615"]
[TimeControl "180+1"]
[EndTime "8:18:07 PDT"]
[Termination "dropstoneDP won by resignation"]

1. e4 {[%clk 0:03:00.9]} 1... e6 {[%clk 0:02:59.7]} 2. d4 {[%clk 0:03:00.5]}
2... d5 {[%clk 0:03:00.2]} 3. Nc3 {[%clk 0:03:00.6]} 3... Nf6 {[%clk 0:02:59.7]}
4. Bg5 {[%clk 0:03:00.8]} 4... dxe4 {[%clk 0:02:59.8]} 5. Nxe4 {[%clk
0:03:01.6]} 5... Nbd7 {[%clk 0:02:59.2]} 6. Nf3 {[%clk 0:03:00]} 6... h6 {[%clk
0:02:54.5]} 7. Bxf6 {[%clk 0:02:59.7]} 7... Nxf6 {[%clk 0:02:53.3]} 8. Bd3
{[%clk 0:03:00.6]} 8... Nxe4 {[%clk 0:02:48.4]} 9. Bxe4 {[%clk 0:03:01.5]} 9...
c5 {[%clk 0:02:48.5]} 10. Qe2 {[%clk 0:03:00.7]} 10... Qa5+ {[%clk 0:02:42.9]}
11. c3 {[%clk 0:03:00.8]} 11... Be7 {[%clk 0:02:42.6]} 12. O-O {[%clk
0:02:59.8]} 12... O-O {[%clk 0:02:31.8]} 13. Ne5 {[%clk 0:02:59.1]} 13... cxd4
{[%clk 0:01:55.9]} 14. cxd4 {[%clk 0:03:00]} 14... Bf6 {[%clk 0:01:56]} 15. Rfd1
{[%clk 0:02:55.7]} 15... Rd8 {[%clk 0:01:50.2]} 16. Qh5 {[%clk 0:02:54.9]} 16...
Qc7 {[%clk 0:01:35.8]} 17. Rac1 {[%clk 0:02:51.1]} 17... Qe7 {[%clk 0:01:35.4]}
18. g3 {[%clk 0:02:44.7]} 18... a5 {[%clk 0:01:33.7]} 19. a4 {[%clk 0:02:38]}
19... Ra6 {[%clk 0:01:31.4]} 20. Rd3 {[%clk 0:02:27.2]} 20... Rb6 {[%clk
0:01:22.2]} 21. Rdc3 {[%clk 0:02:24.7]} 21... Bxe5 {[%clk 0:00:56.7]} 22. Qxe5
{[%clk 0:02:20.9]} 22... Bd7 {[%clk 0:00:52.6]} 23. b3 {[%clk 0:02:18.7]} 23...
Bc6 {[%clk 0:00:47]} 24. Bxc6 {[%clk 0:02:12.1]} 24... bxc6 {[%clk 0:00:47.4]}
25. Qxa5 {[%clk 0:02:12.1]} 25... Qb4 {[%clk 0:00:37.6]} 26. Qxb4 {[%clk
0:01:56.9]} 26... Rxb4 {[%clk 0:00:38.5]} 27. Rd3 {[%clk 0:01:56.8]} 27... Rdb8
{[%clk 0:00:33.7]} 28. Rcc3 {[%clk 0:01:49.3]} 28... Kf8 {[%clk 0:00:32]} 29.
Kf1 {[%clk 0:01:48.9]} 29... Ke7 {[%clk 0:00:32.2]} 30. Ke2 {[%clk 0:01:47.1]}
30... Kd6 {[%clk 0:00:31.6]} 31. Kd2 {[%clk 0:01:47.6]} 31... g5 {[%clk
0:00:30.4]} 32. Kc2 {[%clk 0:01:46.9]} 32... g4 {[%clk 0:00:29.8]} 33. Rc5
{[%clk 0:01:46.2]} 33... Rg8 {[%clk 0:00:23.1]} 34. Rdc3 {[%clk 0:01:41.1]}
34... Rc8 {[%clk 0:00:13.9]} 35. R3c4 {[%clk 0:01:40.8]} 35... Rb6 {[%clk
0:00:12.4]} 36. b4 {[%clk 0:01:40.6]} 36... Rcb8 {[%clk 0:00:11.1]} 37. Kc3
{[%clk 0:01:39.6]} 37... Ra6 {[%clk 0:00:11.3]} 38. a5 {[%clk 0:01:38.5]} 38...
Rg8 {[%clk 0:00:09.2]} 39. Rh5 {[%clk 0:01:38.4]} 39... Rg6 {[%clk 0:00:07.4]}
40. Kb3 {[%clk 0:01:37]} 40... f5 {[%clk 0:00:07.2]} 41. Rc5 {[%clk 0:01:36.1]}
41... Rf6 {[%clk 0:00:06.9]} 42. Ka4 {[%clk 0:01:35.9]} 42... f4 {[%clk
0:00:06.7]} 43. gxf4 {[%clk 0:01:34.7]} 43... Rxf4 {[%clk 0:00:07]} 44. Rxh6
{[%clk 0:01:35.3]} 44... Rxf2 {[%clk 0:00:07.4]} 45. Re5 {[%clk 0:01:35.5]}
45... Ra2+ {[%clk 0:00:02.1]} 46. Kb3 {[%clk 0:01:35.6]} 46... Rd2 {[%clk
0:00:02.2]} 47. Rhxe6+ {[%clk 0:01:35.7]} 47... Kd7 {[%clk 0:00:02.8]} 48. Re7+
{[%clk 0:01:35.8]} 48... Kd6 {[%clk 0:00:03.1]} 1-0

[Event "Early-Titled-Tuesday-Blitz-May-28-2024"]
[Site "Chess.com"]
[Date "2024.05.28"]
[Round "2"]
[White "laskakid"]
[Black "betta2004"]
[Result "0-1"]
[WhiteElo "2367"]
[BlackElo "2595"]
[TimeControl "180+1"]
[EndTime "8:18:11 PDT"]
[Termination "betta2004 won on time"]

1. Nf3 {[%clk 0:03:00.9]} 1... b6 {[%clk 0:02:50.3]} 2. e4 {[%clk 0:02:56.3]}
2... Bb7 {[%clk 0:02:51.2]} 3. d3 {[%clk 0:02:56.5]} 3... g6 {[%clk 0:02:50.6]}
4. g3 {[%clk 0:02:56.2]} 4... Bg7 {[%clk 0:02:39.6]} 5. Bg2 {[%clk 0:02:56.2]}
5... e6 {[%clk 0:02:39.4]} 6. O-O {[%clk 0:02:56.1]} 6... Ne7 {[%clk 0:02:39.4]}
7. Re1 {[%clk 0:02:53.5]} 7... d5 {[%clk 0:02:39.8]} 8. Nbd2 {[%clk 0:02:45.4]}
8... O-O {[%clk 0:02:39.6]} 9. c3 {[%clk 0:02:34.6]} 9... c5 {[%clk 0:02:37.9]}
10. e5 {[%clk 0:02:34.2]} 10... Nbc6 {[%clk 0:02:34.5]} 11. h4 {[%clk
0:02:23.2]} 11... Qc7 {[%clk 0:02:33.5]} 12. Qe2 {[%clk 0:02:22.1]} 12... Rae8
{[%clk 0:02:21.1]} 13. Nf1 {[%clk 0:02:20.5]} 13... h5 {[%clk 0:02:18.8]} 14.
Bf4 {[%clk 0:02:18.6]} 14... Nf5 {[%clk 0:02:19.2]} 15. Ne3 {[%clk 0:02:10]}
15... Qd7 {[%clk 0:02:14.4]} 16. Nxf5 {[%clk 0:02:01.6]} 16... exf5 {[%clk
0:02:15.3]} 17. d4 {[%clk 0:01:58.6]} 17... cxd4 {[%clk 0:02:14.4]} 18. cxd4
{[%clk 0:01:58.7]} 18... Nd8 {[%clk 0:02:14.4]} 19. Qd2 {[%clk 0:01:57.3]} 19...
Ne6 {[%clk 0:02:14.6]} 20. Bh6 {[%clk 0:01:57.5]} 20... Rc8 {[%clk 0:02:14.2]}
21. Bxg7 {[%clk 0:01:55.4]} 21... Kxg7 {[%clk 0:02:15.1]} 22. Rac1 {[%clk
0:01:43.3]} 22... Rxc1 {[%clk 0:02:13.8]} 23. Rxc1 {[%clk 0:01:42.6]} 23... Rc8
{[%clk 0:02:14.7]} 24. Rc3 {[%clk 0:01:28]} 24... Rxc3 {[%clk 0:02:07.1]} 25.
Qxc3 {[%clk 0:01:27.7]} 25... Qc7 {[%clk 0:02:03.6]} 26. Qxc7 {[%clk 0:01:20]}
26... Nxc7 {[%clk 0:02:04.5]} 27. Kf1 {[%clk 0:01:17.4]} 27... f6 {[%clk
0:02:03.9]} 28. exf6+ {[%clk 0:01:11.9]} 28... Kxf6 {[%clk 0:02:04.8]} 29. Ke2
{[%clk 0:01:08.2]} 29... Nb5 {[%clk 0:01:59.2]} 30. Ke3 {[%clk 0:01:07.4]} 30...
Nd6 {[%clk 0:01:59.8]} 31. Ne5 {[%clk 0:01:03.4]} 31... g5 {[%clk 0:01:53.8]}
32. hxg5+ {[%clk 0:00:53.9]} 32... Kxg5 {[%clk 0:01:54.7]} 33. b3 {[%clk
0:00:49.5]} 33... a5 {[%clk 0:01:27.9]} 34. Nd3 {[%clk 0:00:48]} 34... a4 {[%clk
0:01:23.7]} 35. Nf4 {[%clk 0:00:35.6]} 35... h4 {[%clk 0:01:08.6]} 36. Bxd5
{[%clk 0:00:29.8]} 36... Bxd5 {[%clk 0:01:02.8]} 37. Nxd5 {[%clk 0:00:29.9]}
37... h3 {[%clk 0:01:02.9]} 38. Kf3 {[%clk 0:00:28.9]} 38... Nb5 {[%clk
0:01:01.7]} 39. Nf4 {[%clk 0:00:11]} 39... Nxd4+ {[%clk 0:01:00.5]} 40. Ke3
{[%clk 0:00:11.3]} 40... h2 {[%clk 0:01:00]} 41. Nh3+ {[%clk 0:00:06.2]} 41...
Kg4 {[%clk 0:00:59.2]} 42. Kxd4 {[%clk 0:00:05.5]} 42... h1=Q {[%clk 0:00:57.5]}
0-1

[Event "Early-Titled-Tuesday-Blitz-May-28-2024"]
[Site "Chess.com"]
[Date "2024.05.28"]
[Round "2"]
[White "JAN2404"]
[Black "LileKoridze"]
[Result "0-1"]
[WhiteElo "1953"]
[BlackElo "2439"]
[TimeControl "180+1"]
[EndTime "8:18:11 PDT"]
[Termination "LileKoridze won by resignation"]

1. e4 {[%clk 0:03:00.9]} 1... c5 {[%clk 0:02:59.6]} 2. d4 {[%clk 0:02:51.6]}
2... cxd4 {[%clk 0:02:59.1]} 3. c3 {[%clk 0:02:50.4]} 3... dxc3 {[%clk
0:02:59.5]} 4. Nxc3 {[%clk 0:02:50.4]} 4... Nc6 {[%clk 0:02:58.4]} 5. Nf3 {[%clk
0:02:50.3]} 5... d6 {[%clk 0:02:58.3]} 6. Bc4 {[%clk 0:02:50.7]} 6... e6 {[%clk
0:02:58.6]} 7. O-O {[%clk 0:02:50.7]} 7... a6 {[%clk 0:02:58.2]} 8. Qe2 {[%clk
0:02:48.1]} 8... Nf6 {[%clk 0:02:57.6]} 9. Rd1 {[%clk 0:02:47.1]} 9... Qc7
{[%clk 0:02:57.5]} 10. Bb3 {[%clk 0:02:42.2]} 10... Be7 {[%clk 0:02:57.2]} 11.
h3 {[%clk 0:02:34]} 11... O-O {[%clk 0:02:56.8]} 12. Be3 {[%clk 0:02:33.6]}
12... b5 {[%clk 0:02:49.6]} 13. Rac1 {[%clk 0:02:15.4]} 13... Qb7 {[%clk
0:02:40.9]} 14. Bd4 {[%clk 0:02:01]} 14... Nxd4 {[%clk 0:02:23.1]} 15. Rxd4
{[%clk 0:01:44.7]} 15... Bd7 {[%clk 0:02:20.5]} 16. e5 {[%clk 0:01:38.2]} 16...
dxe5 {[%clk 0:02:18.7]} 17. Nxe5 {[%clk 0:01:37.2]} 17... Rfd8 {[%clk
0:02:11.9]} 18. Nxd7 {[%clk 0:01:27.9]} 18... Rxd7 {[%clk 0:02:12]} 19. Rxd7
{[%clk 0:01:24.2]} 19... Qxd7 {[%clk 0:02:11.4]} 20. Rd1 {[%clk 0:01:24.1]}
20... Qc7 {[%clk 0:02:09.5]} 21. Bc2 {[%clk 0:00:48.7]} 21... Rc8 {[%clk
0:01:43]} 22. Rd2 {[%clk 0:00:35.2]} 22... g6 {[%clk 0:01:09.4]} 23. g3 {[%clk
0:00:22.5]} 23... b4 {[%clk 0:00:52.3]} 24. Ne4 {[%clk 0:00:20.9]} 24... Nxe4
{[%clk 0:00:52.2]} 25. Bxe4 {[%clk 0:00:20.2]} 25... Bf6 {[%clk 0:00:51.4]} 26.
Rc2 {[%clk 0:00:19.2]} 26... Qd8 {[%clk 0:00:48.9]} 27. Qxa6 {[%clk 0:00:17.7]}
27... Rxc2 {[%clk 0:00:47.3]} 28. Bxc2 {[%clk 0:00:17.5]} 28... Bxb2 {[%clk
0:00:48]} 29. Qc4 {[%clk 0:00:14.5]} 29... Bc3 {[%clk 0:00:47.2]} 30. a3 {[%clk
0:00:13.6]} 30... Qd2 {[%clk 0:00:46.9]} 31. Ba4 {[%clk 0:00:03.7]} 31... bxa3
{[%clk 0:00:41.5]} 32. Bb3 {[%clk 0:00:01.3]} 32... Bd4 {[%clk 0:00:41]} 33.
Qc8+ {[%clk 0:00:01.2]} 33... Kg7 {[%clk 0:00:41]} 34. Qb7 {[%clk 0:00:01.3]}
34... Qxf2+ {[%clk 0:00:40.8]} 0-1